Cogmind - Beta 16 @@@ ROGUE MODE // 2025.10.30 @ 04:17:37 Player: time Result: Destroyed by S-43 Plague with Heavy Machine Gun Performance ------------- Evolutions (9) 4500 Regions Visited (13) 2600 Robots Destroyed (97) 485 Value Destroyed (3558) 3558 Prototype IDs (4) 80 Alien Tech Used (0) 0 Bonus (510) 510 TOTAL SCORE: 11733 Bonus ------- Follower Combat Kills 21 Entered DSFs 500 Friendly Fire -11 Cogmind --------- Core Integrity 0/1600 Matter 62/300 Energy 95/100 System Corruption 10% Temperature Cool (0) Movement Core (50) Location -1/Access Parts ------- > --- POWER (3) -------- (None) > --- PROPULSION (7) --- (None) > --- UTILITY (11) ----- Launcher Guidance Computer Core Analyzer System Shield > --- WEAPON (4) ------- (None) > --- INVENTORY (5) ---- Improved Quantum Reactor Long-range Phase Cannon Enhanced Nova Cannon Hardcell Cannon Peak State ------------ > --- POWER ------------ Improved Fusion Compressor Particle Reactor Light Quantum Reactor > --- PROPULSION ------- Medium Treads Myomer Leg Myomer Leg Myomer Leg Myomer Leg Myomer Leg > --- UTILITY ---------- Advanced Heat Sink Advanced Signal Interpreter Launcher Guidance Computer Transmission Jammer Jamming Amplifier Improved Remote Force Field System Shield > --- WEAPON ----------- Dispersion Rifle Quantum Rifle Nova Cannon Linear Accelerator > --- INVENTORY -------- Particle Reactor Field Propulsion Drive Ripper [Rating: 128] Favorites ----------- Power Light Nuclear Core Engine Angular Momentum Engine Power Core Light Nuclear Core Reactor Particle Reactor Propulsion Aluminum Leg Treads Armored Medium Treads Leg Aluminum Leg Wheel Wheel Hover Unit Backup Propulsion I Flight Unit Cesium-ion Thruster Utility Small Storage Unit Device Transmission Jammer Storage Small Storage Unit Processor Signal Interpreter Hackware System Shield Protection Light Armor Plating Weapon Medium Laser Energy Gun Medium Laser Energy Cannon Cooled Particle Cannon Ballistic Gun Precision Assault Rifle Ballistic Cannon Assault Cannon Launcher Missile Launcher Slashing Weapon Ripper Build | -11 -10 -10 -10 -9 -8 -7 -6 -5 -4 -4 -3 -2 -1 ------- Run | Yrd Mat Min Exi Min Mat Fac Fac Fac Fac DSF Res Res Acc Slots Evolved 18 | . . . . . 4 2 2 2 2 . 2 2 2 Power 2 | . . . . . . 1 . . . . 1 . . Propulsion 5 | . . . . . 2 . . 1 . . 1 . 1 Utility 9 | . . . . . 2 1 2 1 1 . . 1 1 Weapon 2 | . . . . . . . . . 1 . . 1 . Parts Attached 122 | 8 4 1 2 2 18 18 14 15 3 3 4 19 11 Power 19 | 1 1 1 . . 3 2 1 4 . . . 4 2 Engine 7 | 1 1 . . . 2 . 1 2 . . . . . Core 7 | . . 1 . . 1 2 . 2 . . . 1 . Reactor 5 | . . . . . . . . . . . . 3 2 Propulsion 42 | 2 2 . 2 . 6 5 5 4 1 2 1 7 5 Treads 5 | . . . . . . . . . 1 . . 1 3 Leg 26 | 2 2 . 2 . 6 4 5 . . . . 5 . Wheel 1 | . . . . . . 1 . . . . . . . Hover 1 | . . . . . . . . . . . . . 1 Flight 9 | . . . . . . . . 4 . 2 1 1 1 Utility 29 | 2 1 . . . 4 6 5 3 1 . 1 4 2 Device 15 | 1 . . . . 1 3 2 1 1 . 1 3 2 Storage 4 | 1 . . . . 1 1 1 . . . . . . Processor 8 | . 1 . . . 1 2 1 2 . . . 1 . Hackware 1 | . . . . . . . 1 . . . . . . Protection 1 | . . . . . 1 . . . . . . . . Artifact . | . . . . . . . . . . . . . . Weapon 32 | 3 . . . 2 5 5 3 4 1 1 2 4 2 Energy Gun 9 | 3 . . . . . 1 1 2 . 1 . 1 . Energy Cannon 8 | . . . . . 2 . . . 1 . 1 2 2 Ballistic Gun 8 | . . . . 2 1 3 1 1 . . . . . Ballistic Cannon 4 | . . . . . 1 . 1 1 . . . 1 . Launcher 2 | . . . . . . 1 . . . . 1 . . Special Weapon . | . . . . . . . . . . . . . . Impact Weapon . | . . . . . . . . . . . . . . Slashing Weapon 1 | . . . . . 1 . . . . . . . . Piercing Weapon . | . . . . . . . . . . . . . . Special Melee Weapon . | . . . . . . . . . . . . . . Unidentified Prototypes 4 | . . . . . 1 1 . . . . . . 2 Parts Lost 70 | . 1 . . . 9 6 6 11 . 1 9 15 12 Power 14 | . 1 . . . 1 1 1 4 . . 2 3 1 Propulsion 34 | . . . . . 5 3 2 6 . . 4 8 6 Utility 11 | . . . . . 1 2 2 . . 1 1 1 3 Weapon 11 | . . . . . 2 . 1 1 . . 2 3 2 Highest Loss Streak 13 | . 1 . . . 3 3 2 4 . 1 9 13 6 To Critical Strikes 1 | . . . . . . . . . . . . 1 . Average Backups 8 | 2 6 8 8 8 9 7 12 12 5 5 3 3 3 Power 1 | . 1 1 1 1 1 . 2 1 . . . 1 1 Propulsion 2 | . 2 3 3 4 3 1 4 3 1 1 . . . Utility 1 | . 2 2 1 1 . 1 . . . . . . . Weapon 3 | . . 1 2 2 3 3 5 6 4 4 3 1 1 Tool/Special . | . . . . . . . . . . . . . . Unused Backups 13 | . 1 2 . 1 2 1 . 4 . . 1 . 1 Power 1 | . . . . . 1 . . . . . . . . Propulsion 1 | . 1 . . . . . . . . . . . . Utility 4 | . . 2 . 1 . 1 . . . . . . . Weapon 6 | . . . . . 1 . . 3 . . 1 . 1 Tool/Special 1 | . . . . . . . . 1 . . . . . Average Slot Usage (%) 89 | . 99 100 100 100 92 95 95 76 61 68 63 60 43 Engine 4 | . 13 5 . . 7 5 4 3 5 5 3 2 . Core 5 | . . 8 14 14 1 6 6 4 5 5 2 1 . Leg 23 | . 28 28 28 28 34 27 25 10 . . . 11 . Flight 1 | . . . . . . . . 8 10 12 17 1 4 Device 6 | . 12 . . . 8 11 11 5 7 7 4 5 3 Storage 9 | . 14 14 14 14 9 6 12 7 . . . . . Processor 13 | . 1 14 14 14 12 17 13 20 26 26 19 13 15 Hackware 1 | . . . . . . . 5 5 5 5 4 4 4 Energy Gun 10 | . 28 28 28 12 . 4 2 2 . 2 3 4 . Energy Cannon 1 | . . . . . 6 . 1 2 . . . 2 1 Ballistic Gun 4 | . . . . 15 8 7 6 . . . . . . Peak Build Rating 128 | 7 7 10 16 17 36 42 54 61 71 71 84 128 108 Average Rating 35 | 5 6 8 13 16 29 37 48 53 62 68 65 83 65 On Entrance 32 | . 7 7 10 16 17 28 38 49 50 71 69 49 41 Avg Prop Armor Cover (%) 17 | . . . . . . 3 . . 23 23 6 7 28 Naked Turns . | . . . . . . . . . . . . . . Heaviest Build 95 | 13 15 13 13 14 71 33 62 56 15 18 31 95 71 Greatest Support 100 | 20 20 20 40 40 75 66 58 73 19 33 40 100 81 Greatest Overweight (x) 2 | 1 . . . . 1 . 1 2 . . 1 2 . Average Overweight (x) . | . . . . . . . . . . . . . . Largest Inventory Capacity 20 | 8 8 8 8 8 20 20 15 15 5 5 5 5 5 Average Capacity 10 | 7 8 8 8 8 16 7 14 14 5 5 5 5 5 Most Carried 15 | 3 8 8 8 8 12 8 15 15 5 5 5 5 5 Average Carried 8 | 2 6 8 7 7 9 7 12 12 5 4 3 3 3 Final Capacity 15 | 8 8 8 8 8 8 8 15 5 5 5 5 5 5 Final Carried 15 | 3 8 8 8 8 8 8 15 5 5 5 5 5 4 Class Distribution -------------------- 62% | Mutant 14% | Scavenger-Mutant 5% | Derelict-Mutant 5% | Skirmisher 3% | Sprinter 3% | Scavenger-Skirmisher Dominant Class ---------------- Mutant | -10/Materials Mutant | -10/Mines Mutant | -10/Exiles Mutant | -9/Mines Mutant | -8/Materials Skirmisher | -7/Factory Scavenger-Mutant | -6/Factory Mutant | -5/Factory Mutant | -4/Factory Mutant | -4/DSF Sprinter | -3/Research Gunner | -2/Research Mutant | -1/Access Resources | -11 -10 -10 -10 -9 -8 -7 -6 -5 -4 -4 -3 -2 -1 ----------- Run | Yrd Mat Min Exi Min Mat Fac Fac Fac Fac DSF Res Res Acc Matter Collected 2408 | 201 124 10 . 55 454 346 378 336 . . . 474 30 Remotely . | . . . . . . . . . . . . . . Salvage Created 3654 | 59 305 76 . 55 860 642 551 505 . . 50 453 98 Parts 156 | 7 17 2 . 2 29 34 15 24 . . 2 18 6 Haulers Intercepted 3 | . 1 . . . . 1 1 . . . . . . Recyclers Shooed 4 | . . . . 1 . 1 1 1 . . . . . Parts Field Recycled . | . . . . . . . . . . . . . . Retrieved Matter . | . . . . . . . . . . . . . . Parts Self-Destructed . | . . . . . . . . . . . . . . Prevented . | . . . . . . . . . . . . . . Parts Restored . | . . . . . . . . . . . . . . Kills | -11 -10 -10 -10 -9 -8 -7 -6 -5 -4 -4 -3 -2 -1 ------- Run | Yrd Mat Min Exi Min Mat Fac Fac Fac Fac DSF Res Res Acc Combat Hostiles Destroyed 80 | . 9 2 . 3 19 12 10 14 . . 1 8 2 Melee 2 | . . . . . 1 . . . . . . . 1 Guns 43 | . 7 2 . 3 12 9 3 5 . . . 2 . Cannons 17 | . . . . . 6 . 4 . . . . 6 1 AOE 15 | . . . . . . 3 2 9 . . 1 . . Classes Destroyed 12 | 1 3 . . . 3 4 1 . . . . . . Worker 3 | . . . . . . 1 1 . . . . 1 . Builder 3 | . . . . . . 1 . 2 . . . . . Tunneler 3 | 3 . . . . . . . . . . . . . Hauler 3 | . 1 . . . . 1 1 . . . . . . Recycler 3 | . . . . . 1 2 . . . . . . . Watcher 2 | . . . . . 1 . . 1 . . . . . Swarmer 28 | . 4 . . 3 3 4 . 9 . . . 4 1 Grunt 42 | . 5 2 . . 15 4 8 4 . . 1 3 . Duelist 1 | . . . . . . . 1 . . . . . . Sentry 4 | . . . . . 1 1 . 1 . . . 1 . Hunter 1 | . . . . . . 1 . . . . . . . Programmer 4 | . . . . . . 2 1 . . . . . 1 Best Kill Streak 8 | 3 3 1 . 2 8 5 5 5 . . 1 5 1 Combat Bots Only 8 | . 3 1 . 2 8 4 3 5 . . 1 4 1 Max Kills in Single Turn 5 | 1 1 1 . 1 1 4 2 5 . . 1 2 1 Gunslinging . | . . . . . . . . . . . . . . Exploded 5 | . . . . . . 3 2 5 . . 1 . . Melee 1 | . . . . . 1 . . . . . . . 1 Uniques/NPCs Destroyed . | . . . . . . . . . . . . . . Combat | -11 -10 -10 -10 -9 -8 -7 -6 -5 -4 -4 -3 -2 -1 -------- Run | Yrd Mat Min Exi Min Mat Fac Fac Fac Fac DSF Res Res Acc Hostile Shots Fired 1032 | . 45 6 . 7 180 117 70 92 . 3 48 149 315 Missed 343 | . 15 1 . 2 61 31 16 24 . 1 10 37 145 Hits 689 | . 30 5 . 5 119 86 54 68 . 2 38 112 170 Melee 7 | . . . . . . . 7 . . . . . . Projectile 682 | . 30 5 . 5 119 86 47 68 . 2 38 112 170 Critical Strikes 32 | . . . . . 7 3 5 2 . . 6 3 6 Part Disruptions 1 | . . . . . . . . . . . . . 1 Damage Taken 12386 | . 360 97 . 42 1364 875 1312 1486 . 145 818 2045 3842 Core 3479 | . 62 14 . 7 250 98 262 491 . . 212 464 1619 Absorbed by Shields 914 | . . . . . 408 204 . . . . . 302 . Regen/Repaired (Parts) 111 | . . . . . . . 111 . . . . . . Core Remaining (%) 75 | 100 . . . 66 54 86 69 50 . 100 83 68 . Volleys Fired 252 | 4 25 5 . 4 55 32 43 39 . . 8 24 13 Largest 4 | 2 2 2 . 2 2 2 2 2 . . 3 4 1 Hottest 349 | 100 100 90 . 90 67 105 100 122 . . 236 349 120 Shots Fired 465 | 8 50 10 . 8 104 64 84 61 . . 13 50 13 Gun 304 | 8 50 10 . 8 50 63 53 36 . . 8 18 . Cannon 154 | . . . . . 54 . 29 22 . . 4 32 13 Launcher 7 | . . . . . . 1 2 3 . . 1 . . Special . | . . . . . . . . . . . . . . Kinetic 191 | . . . . 6 63 40 51 17 . . . 14 . Thermal 248 | 8 50 10 . 2 41 23 12 41 . . 12 36 13 Explosive 7 | . . . . . . 1 2 3 . . 1 . . Electromagnetic 19 | . . . . . . . 19 . . . . . . Robot Hit Streak 23 | 5 19 10 . 12 10 9 23 21 . . 3 4 2 Robot Miss Streak 9 | 1 2 . . 3 4 9 2 5 . . 4 2 2 Penetration Max 1 | . . . . . . . 1 1 . . . . . Secondary Targets 4 | . . . . . 2 1 1 . . . . . . Max Gunslinging Chain 1 | . . . . . 1 1 1 . . . . . . Shots Hit Robots 312 | 5 37 8 . 4 81 42 58 37 . . 4 27 9 Core Hits 186 | 3 14 7 . 3 42 35 31 25 . . 7 16 3 Critical Kills 1 | . . . . . . . . . . . . 1 . Critical Parts Destroyed 1 | . . . . . . . 1 . . . . . . Critical Strikes 13 | 1 4 1 . 1 1 . 4 . . . . 1 . Burn 7 | 1 4 1 . 1 . . . . . . . . . Destroy 2 | . . . . . . . 1 . . . . 1 . Blast 4 | . . . . . 1 . 3 . . . . . . Melee Attacks 16 | . . . . . 10 . 1 2 . . . 1 2 Impact . | . . . . . . . . . . . . . . Slashing 16 | . . . . . 10 . 1 2 . . . 1 2 Piercing . | . . . . . . . . . . . . . . Sneak Attacks . | . . . . . . . . . . . . . . Combat Hostiles . | . . . . . . . . . . . . . . Follow-up Attacks . | . . . . . . . . . . . . . . Damage Inflicted 9147 | 64 462 116 . 45 1848 1236 1887 1744 . . 293 1004 448 Guns 4227 | 64 462 94 . 41 737 999 821 735 . . 54 220 . Cannons 3105 | . . . . . 974 . 601 352 . . 35 777 366 Explosions 1525 | . . . . . . 206 465 650 . . 204 . . Melee 187 | . . . . . 105 . . . . . . . 82 Ramming 103 | . . 22 . 4 32 31 . 7 . . . 7 . Kinetic 3343 | . . . . 29 934 690 946 352 . . . 392 . Thermal 3731 | 64 462 94 . 12 777 309 218 735 . . 89 605 366 Explosive 1525 | . . . . . . 206 465 650 . . 204 . . Electromagnetic 258 | . . . . . . . 258 . . . . . . Impact . | . . . . . . . . . . . . . . Slashing 187 | . . . . . 105 . . . . . . . 82 Piercing . | . . . . . . . . . . . . . . Highest Corruption 9 | . . . . . . . 3 . . . . . 9 Average Corruption 2 | . . . . . . . 1 . . . . . 4 Corruption Purged . | . . . . . . . . . . . . . . Corruption Blocked . | . . . . . . . . . . . . . . Effects 11 | . . . . . . . 6 . . . . . 5 Message Errors 4 | . . . . . . . 2 . . . . . 2 Matter Fused 2 | . . . . . . . 2 . . . . . . Heat Flow Errors 1 | . . . . . . . . . . . . . 1 Energy Discharges 2 | . . . . . . . 2 . . . . . . Data Loss (minor) 2 | . . . . . . . . . . . . . 2 Overload Shots . | . . . . . . . . . . . . . . Overflow Damage 174 | . . . . . 2 . 28 36 . . 30 31 47 Projectiles 121 | . . . . . . . 28 15 . . . 31 47 Explosions 51 | . . . . . . . . 21 . . 30 . . Melee 2 | . . . . . 2 . . . . . . . . Knockbacks 19 | . . . . . 3 . 2 5 . . . 9 . Impact . | . . . . . . . . . . . . . . Kinetic 17 | . . . . . 3 . 2 5 . . . 7 . Secondary 2 | . . . . . . . . . . . . 2 . Self-Inflicted Damage 153 | . . . . . . . . 98 . . 55 . . Shots 3 | . . . . . . . . 2 . . 1 . . Rammed 1 | . . . . . . . . 1 . . . . . Targets Rammed 18 | . . 6 . 2 1 7 . 1 . . . 1 . Kicked 17 | . . 6 . 2 1 7 . . . . . 1 . Crushed . | . . . . . . . . . . . . . . Highest Temperature 1026 | 78 261 117 . 36 66 292 380 550 . . 555 1026 138 Average Temperature 151 | 30 87 52 . 11 14 81 113 193 . . 218 430 17 Received Heat Transfer 2214 | . 126 42 . . 678 106 306 303 . . 278 78 297 Effects 62 | . . . . . . . 5 7 . . 4 46 . Shutdowns 20 | . . . . . . . 2 2 . . 1 15 . Energy Bleed 6 | . . . . . . . . 2 . . 2 2 . Interference 6 | . . . . . . . 2 . . . . 4 . Matter Decay 3 | . . . . . . . . . . . 1 2 . Short Circuit 4 | . . . . . . . . 1 . . . 3 . Damage (minor) 7 | . . . . . . . 1 1 . . . 5 . Damage (major) 14 | . . . . . . . . . . . . 14 . Damage (core) 2 | . . . . . . . . 1 . . . 1 . Siege Activations . | . . . . . . . . . . . . . . Martial Activations . | . . . . . . . . . . . . . . Shielding Activations . | . . . . . . . . . . . . . . Robots Disrupted . | . . . . . . . . . . . . . . Combat Hostiles . | . . . . . . . . . . . . . . Robots Corrupted 2 | . . . . . 1 . 1 . . . . . . Combat Hostiles 1 | . . . . . . . 1 . . . . . . Parts Fried 6 | . . . . . 2 . 4 . . . . . . Impact Corruptions 1 | . . . . . 1 . . . . . . . . Robots Melted 2 | . 2 . . . . . . . . . . . . Combat Hostiles 2 | . 2 . . . . . . . . . . . . Parts Melted 8 | . 3 2 . . . 1 . 2 . . . . . Heat Transferred 6477 | 259 1629 334 . 111 1073 592 296 1147 . . 111 666 259 Parts Sabotaged . | . . . . . . . . . . . . . . Parts Stolen . | . . . . . . . . . . . . . . Parts Stripped . | . . . . . . . . . . . . . . Power Chain Reactions . | . . . . . . . . . . . . . . Alert | -11 -10 -10 -10 -9 -8 -7 -6 -5 -4 -4 -3 -2 -1 ------- Run | Yrd Mat Min Exi Min Mat Fac Fac Fac Fac DSF Res Res Acc Maximum Alert Level 1 | . . . . . 1 . . 1 . . . . . Low Security (%) 94 | 100 100 100 . 100 88 100 100 61 100 100 100 100 100 Level 1 5 | . . . . . 11 . . 38 . . . . . Level 2 . | . . . . . . . . . . . . . . Level 3 . | . . . . . . . . . . . . . . Level 4 . | . . . . . . . . . . . . . . Level 5 . | . . . . . . . . . . . . . . High Security . | . . . . . . . . . . . . . . Max Security . | . . . . . . . . . . . . . . Peak Influence 308 | 5 146 45 . 61 231 120 105 308 147 100 100 128 145 Initial 147 | . . . . . . . 52 22 147 95 56 13 4 Average 56 | 1 66 8 . 12 94 28 37 151 142 92 45 41 27 Influence Increases 3190 | 15 280 65 . 81 699 332 358 620 . 15 133 311 281 Destroy 0b10 Robot/C 1660 | . 180 40 . 60 440 240 200 280 . . 20 160 40 Destroy 0b10 Robot/NC 85 | 15 5 . . . 10 25 10 15 . . . 5 . Destroy Leader 310 | . 32 10 . 10 82 62 42 42 . . . 20 10 Allied During Kill 27 | . . . . 11 16 . . . . . . . . Successful Hack 91 | . 17 . . . 28 . 29 . . . 14 3 . Disable Machine 150 | . . . . . 30 . 15 75 . . . 30 . Destroy Structure 162 | . 1 . . . 18 5 17 58 . . 24 33 6 Partial Spotted 105 | . . . . . . . . 60 . . 30 15 . Lose Combat Pursuer 600 | . 45 15 . . 75 . 45 90 . 15 45 45 225 Influence Decreases 3055 | 15 280 65 . 81 699 224 419 367 163 52 208 329 153 Entered New Map 335 | . . . . . . . 56 25 153 42 44 12 3 Time Decay 1860 | 15 204 65 . 81 369 180 314 246 10 . 110 176 90 Lost Part 549 | . 10 . . . 90 44 44 96 . 10 54 141 60 Lost Ally 40 | . . . . . 40 . . . . . . . . Purge Threat 271 | . 66 . . . 200 . 5 . . . . . . Squads Dispatched 24 | . 1 . . . 5 4 6 1 . . 1 3 3 Investigation 6 | . . . . . 1 1 2 . . . 1 . 1 Extermination 6 | . . . . . . 2 2 . . . . 1 1 Reinforcement 12 | . 1 . . . 4 1 2 1 . . . 2 1 Assault . | . . . . . . . . . . . . . . Garrison . | . . . . . . . . . . . . . . Intercept . | . . . . . . . . . . . . . . Searches Triggered . | . . . . . . . . . . . . . . Construction Impeded 2 | . . . . . 1 . . 1 . . . . . Haulers Reinforced 3 | . . . . . . 1 2 . . . . . . Active Scanning Responses . | . . . . . . . . . . . . . . Cargo Convoy Interrupts . | . . . . . . . . . . . . . . Stealth | -11 -10 -10 -10 -9 -8 -7 -6 -5 -4 -4 -3 -2 -1 --------- Run | Yrd Mat Min Exi Min Mat Fac Fac Fac Fac DSF Res Res Acc Distress Signals 12 | . 3 . . 1 2 . 1 2 . . . . 3 Communications Jammed 19 | . . . . . . . 2 1 . . 1 15 . Distress Signals 19 | . . . . . . . 2 1 . . 1 15 . Times Spotted 187 | . 21 3 . 3 36 15 18 24 . 2 6 16 43 Peak Tracking Total 29 | . 6 2 . 1 7 4 4 7 . 1 4 7 29 Tactical Retreats 21 | . 2 1 . . 2 . 3 3 . 1 1 3 5 Traps | -11 -10 -10 -10 -9 -8 -7 -6 -5 -4 -4 -3 -2 -1 ------- Run | Yrd Mat Min Exi Min Mat Fac Fac Fac Fac DSF Res Res Acc Traps Triggered 6 | . 2 1 . . 2 . 1 . . . . . . Indirectly . | . . . . . . . . . . . . . . Trap Hack Attempts . | . . . . . . . . . . . . . . Triggered . | . . . . . . . . . . . . . . Disarmed 7 | . 3 . . . . . 4 . . . . . . Reprogrammed . | . . . . . . . . . . . . . . Reused . | . . . . . . . . . . . . . . Traps Extracted . | . . . . . . . . . . . . . . Installed . | . . . . . . . . . . . . . . Triggered . | . . . . . . . . . . . . . . Machines | -11 -10 -10 -10 -9 -8 -7 -6 -5 -4 -4 -3 -2 -1 ---------- Run | Yrd Mat Min Exi Min Mat Fac Fac Fac Fac DSF Res Res Acc Machines Disabled 10 | . . . . . 2 . 1 5 . . . 2 . Max in Single Turn 5 | . . . . . 1 . 1 5 . . . 1 . Garrison Access 1 | . . . . . 1 . . . . . . . . Machines Repaired . | . . . . . . . . . . . . . . Machines Dismantled . | . . . . . . . . . . . . . . Machines Sabotaged . | . . . . . . . . . . . . . . Overloaded Fab Kills . | . . . . . . . . . . . . . . Hacking | -11 -10 -10 -10 -9 -8 -7 -6 -5 -4 -4 -3 -2 -1 --------- Run | Yrd Mat Min Exi Min Mat Fac Fac Fac Fac DSF Res Res Acc Machines Accessed 45 | . 7 1 4 . 7 2 10 6 1 . 2 2 3 Terminals 19 | . 5 . . . 4 . 5 2 1 . . 1 1 Fabricators 5 | . . . . . . 1 1 2 . . 1 . . Repair Stations 2 | . . . . . . . 1 . . . 1 . . Recycling Units 8 | . 2 . . . 1 1 3 1 . . . . . Scanalyzers 3 | . . . . . 1 . . . . . . 1 1 Garrison Access 3 | . . . . . 1 . . 1 . . . . 1 Total Hacks 155 | . 25 1 49 . 24 6 25 10 1 . 4 6 4 Successful 109 | . 19 1 49 . 15 3 11 3 1 . 3 4 . Failed 46 | . 6 . . . 9 3 14 7 . . 1 2 4 Catastrophic 12 | . 1 . . . 2 . 4 2 . . . 1 2 Database Lockouts . | . . . . . . . . . . . . . . Manual 41 | . 7 . 1 . 15 . 14 3 . . . . 1 Terminals 55 | . 16 . . . 16 . 16 4 1 . . 1 1 Fabricators 8 | . . . . . . 2 2 2 . . 2 . . Repair Stations 4 | . . . . . . . 2 . . . 2 . . Recycling Units 21 | . 9 . . . 1 4 5 2 . . . . . Scanalyzers 12 | . . . . . 6 . . . . . . 5 1 Garrison Access 5 | . . . . . 1 . . 2 . . . . 2 Terminal Hacks 69 | . 8 1 49 . 5 . 4 1 1 . . . . Record 49 | . . . 49 . . . . . . . . . . Robot Analysis 2 | . 1 . . . . . 1 . . . . . . Open Door 1 | . . 1 . . . . . . . . . . . Open DSF 2 | . . . . . . . . 1 1 . . . . Branch Access Points 3 | . 1 . . . 1 . 1 . . . . . . Scanalyzer Index 1 | . 1 . . . . . . . . . . . . Unreport Threat 4 | . 1 . . . 2 . 1 . . . . . . Disarm Traps 2 | . 1 . . . . . 1 . . . . . . Surveillance Status 1 | . 1 . . . . . . . . . . . . Patrol Status 1 | . . . . . 1 . . . . . . . . Recall Investigation 1 | . . . . . 1 . . . . . . . . Hauler Manifests 1 | . 1 . . . . . . . . . . . . Zone Layout 1 | . 1 . . . . . . . . . . . . Fabricator Hacks 5 | . . . . . . 1 2 . . . 2 . . Load Schematic 3 | . . . . . . 1 1 . . . 1 . . Build 2 | . . . . . . . 1 . . . 1 . . Repair Station Hacks 3 | . . . . . . . 2 . . . 1 . . Scan Component 1 | . . . . . . . 1 . . . . . . Repair 1 | . . . . . . . 1 . . . . . . Refit 1 | . . . . . . . . . . . 1 . . Recycling Unit Hacks 11 | . 6 . . . 1 2 1 1 . . . . . Recycle Component 1 | . 1 . . . . . . . . . . . . Process 1 | . 1 . . . . . . . . . . . . Report Inventory 3 | . 1 . . . 1 1 . . . . . . . Retrieve Matter 1 | . 1 . . . . . . . . . . . . Retrieve Components 5 | . 2 . . . . 1 1 1 . . . . . Scanalyzer 8 | . . . . . 4 . . . . . . 4 . Insert Component 2 | . . . . . 1 . . . . . . 1 . Analyze 2 | . . . . . 1 . . . . . . 1 . Retrieve Study 4 | . . . . . 2 . . . . . . 2 . Garrison Access Hacks 1 | . . . . . 1 . . . . . . . . Seal Access 1 | . . . . . 1 . . . . . . . . Unauthorized Hacks 12 | . 5 . . . 4 . 2 1 . . . . . Terminals 12 | . 5 . . . 4 . 2 1 . . . . . Botnet 12 | . 5 . . . 4 . 2 1 . . . . . Fabricators . | . . . . . . . . . . . . . . Repair Stations . | . . . . . . . . . . . . . . Recycling Units . | . . . . . . . . . . . . . . Scanalyzers . | . . . . . . . . . . . . . . Garrison Access . | . . . . . . . . . . . . . . Data Cores Recovered . | . . . . . . . . . . . . . . Used . | . . . . . . . . . . . . . . Hacking Detections 33 | . 6 . . . 4 2 9 6 . . 1 2 3 Full Trace Events 5 | . . . . . . 1 2 . . . 1 . 1 Feedback Events . | . . . . . . . . . . . . . . Feedback Blocked . | . . . . . . . . . . . . . . Robot Schematics Acquired . | . . . . . . . . . . . . . . Robots Built . | . . . . . . . . . . . . . . Authchips . | . . . . . . . . . . . . . . Time . | . . . . . . . . . . . . . . Total Robot Build Rating . | . . . . . . . . . . . . . . Part Schematics Acquired 2 | . . . . . 1 . . . . . . 1 . Parts Built 4 | . . . . . . . 2 . . . 2 . . Authchips . | . . . . . . . . . . . . . . Time 72 | . . . . . . . 36 . . . 36 . . Total Part Build Rating 12 | . . . . . . . 6 . . . 6 . . Part Studies Acquired 4 | . . . . . 2 . . . . . . 2 . Parts Repaired 1 | . . . . . . . 1 . . . . . . Time 44 | . . . . . . . 44 . . . . . . Parts Recycled 1 | . 1 . . . . . . . . . . . . Recycled Matter 1 | . 1 . . . . . . . . . . . . Retrieved Matter 1 | . 1 . . . . . . . . . . . . Retrieved Components 25 | . 12 . . . . 9 3 1 . . . . . Parts Scanalyzed 2 | . . . . . 1 . . . . . . 1 . Part Schematics Acquired 2 | . . . . . 1 . . . . . . 1 . Parts Damaged . | . . . . . . . . . . . . . . Bothacking | -11 -10 -10 -10 -9 -8 -7 -6 -5 -4 -4 -3 -2 -1 ------------ Run | Yrd Mat Min Exi Min Mat Fac Fac Fac Fac DSF Res Res Acc Used RIF Installer . | . . . . . . . . . . . . . . Robots Hacked . | . . . . . . . . . . . . . . Non-combat . | . . . . . . . . . . . . . . Combat . | . . . . . . . . . . . . . . Robot Hacks Applied . | . . . . . . . . . . . . . . Relay Couplers Released . | . . . . . . . . . . . . . . Fabnet Peak Effective % . | . . . . . . . . . . . . . . Robots Rewired 3 | . . . 3 . . . . . . . . . . Allies Hacked . | . . . . . . . . . . . . . . Hacks Repelled . | . . . . . . . . . . . . . . Allies | -11 -10 -10 -10 -9 -8 -7 -6 -5 -4 -4 -3 -2 -1 -------- Run | Yrd Mat Min Exi Min Mat Fac Fac Fac Fac DSF Res Res Acc Total Allies 4 | . . . 3 1 . . . . . . . . . Largest Group 4 | . . . 3 4 4 . . . . . . . . Highest-Rated Group 68 | . . . 37 68 68 . . . . . . . . Highest-Rated Ally 31 | . . . 21 31 31 . . . . . . . . Total Orders . | . . . . . . . . . . . . . . Ally Attacks 14 | . . . . . 14 . . . . . . . . Total Damage 185 | . . . . . 185 . . . . . . . . Kills 4 | . . . . . 4 . . . . . . . . Allies Corrupted . | . . . . . . . . . . . . . . Allies Melted . | . . . . . . . . . . . . . . Intel | -11 -10 -10 -10 -9 -8 -7 -6 -5 -4 -4 -3 -2 -1 ------- Run | Yrd Mat Min Exi Min Mat Fac Fac Fac Fac DSF Res Res Acc Active Infowar (turns) 3740 | 9 514 . . . 363 916 1089 474 35 44 181 115 . Optics 2719 | . . . . . 363 916 1005 435 . . . . . Sensors 650 | . . . . . . 542 108 . . . . . . IFF 325 | . . . . . . . 325 . . . . . . Seismic 523 | 9 514 . . . . . . . . . . . . Jamming 1933 | . . . . . . 72 1089 397 35 44 181 115 . ECM 27 | . . . . . . 27 . . . . . . . Robot Analysis Total 2 | . 1 . . . . . 1 . . . . . . Derelict Logs Recovered 1 | . . . . 1 . . . . . . . . . Drone Launches 2 | . . . . . . . 2 . . . . . . Drone Recoveries 2 | . . . . . . . 2 . . . . . . Exploration | -11 -10 -10 -10 -9 -8 -7 -6 -5 -4 -4 -3 -2 -1 ------------- Run | Yrd Mat Min Exi Min Mat Fac Fac Fac Fac DSF Res Res Acc Turns Passed 7023 | 97 582 337 1047 352 1023 916 1089 550 35 44 243 391 317 Spaces Moved 4741 | 61 378 253 763 232 451 552 555 524 57 56 198 319 342 Core 262 | 7 . . . . . . . . . . 6 18 231 Treads 56 | . . . . . . . . . . . . 1 55 Legs 3554 | 54 378 253 763 232 451 552 555 168 . . . 148 . Wheels . | . . . . . . . . . . . . . . Hover 1 | . . . . . . . . . . . . . 1 Flight 868 | . . . . . . . . 356 57 56 192 152 55 Fastest Speed 27 | 50 120 120 120 140 125 120 120 27 34 32 29 40 40 Average Speed 108 | 115 120 120 132 140 134 122 131 67 50 66 38 74 72 Slowest Speed 245 | 190 120 120 140 140 205 126 190 194 74 74 125 245 170 Overloaded Moves . | . . . . . . . . . . . . . . Propulsion Burnouts . | . . . . . . . . . . . . . . Robots Hopped 15 | . . . . . . . . 12 . . . 3 . Potential Cave-ins . | . . . . . . . . . . . . . . Cave-ins Triggered . | . . . . . . . . . . . . . . Exploration Rate (%) 31 | 5 62 29 93 45 43 14 23 22 2 67 6 10 15 Regions Visited 13 Branch Regions 3 Pre-discovered Areas 1 | . . . 1 . . . . . . . . . . Known Exits Taken 10 | . 1 1 1 1 1 1 1 1 1 . 1 . . Unknown Exits Taken 2 | 1 . . . . . . . . . . . 1 . Scrap Searched 2 | . . . . 2 . . . . . . . . . Spaces Dug 8 | . . . . . 4 . 1 2 . . . 1 . Terrain Destroyed 87 | . . . . . 14 5 19 27 . . 10 10 2 Melee 7 | . . . . . 3 . 1 2 . . . 1 . Projectile 38 | . . . . . 11 . 3 10 . . 3 9 2 AOE 42 | . . . . . . 5 15 15 . . 7 . . Terrain Rammed . | . . . . . . . . . . . . . . Walls Destroyed . | . . . . . . . . . . . . . . Machines Disabled . | . . . . . . . . . . . . . . Actions | -11 -10 -10 -10 -9 -8 -7 -6 -5 -4 -4 -3 -2 -1 --------- Run | Yrd Mat Min Exi Min Mat Fac Fac Fac Fac DSF Res Res Acc Total 6110 | 75 457 276 803 251 747 728 822 649 62 61 352 428 399 Wait 745 | . 37 7 . 8 192 84 187 48 . . 134 45 3 Move 4701 | 60 377 252 762 231 450 551 554 500 56 55 197 314 342 Hop 12 | . . . . . . . . 11 . . . 1 . Pick Up 57 | 3 9 2 2 1 7 10 8 6 1 1 3 2 2 Fast Attach 77 | 7 . . . 2 6 14 8 8 3 3 1 14 11 Attach 60 | . 2 . . . 10 5 8 13 . . 4 9 9 Detach 44 | . . . . . 4 6 3 10 . . 3 8 10 Swap 36 | 1 3 1 2 . 8 6 9 3 . . 1 2 . Drop 59 | . 4 3 4 3 4 13 1 8 2 2 1 7 7 Fire 252 | 4 25 5 . 4 55 32 43 39 . . 8 24 13 Melee 16 | . . . . . 10 . 1 2 . . . 1 2 Ram 1 | . . . . . . . . 1 . . . . . Kick 17 | . . 6 . 2 1 7 . . . . . 1 . Crush . | . . . . . . . . . . . . . . Escape Stasis . | . . . . . . . . . . . . . . Rewire 33 | . . . 33 . . . . . . . . . . Trap . | . . . . . . . . . . . . . . Miscellaneous . | . . . . . . . . . . . . . . Route ------- -11/Scrapyard -10/Materials (discovered 3 exits: *Mat / *Min x2) -10/Mines (discovered 3 exits: *Mat x2 / *Exi) -10/Exiles (discovered 2 exits: *Min x2) -9/Mines -8/Materials (discovered 4 exits: *Fac x2 / Sto x2) -7/Factory (discovered 2 exits: *Fac / *Low) -6/Factory (discovered 3 exits: *Fac / Low x2) -5/Factory -4/Factory -4/DSF -3/Research -2/Research -1/Access History --------- Turn | Location | Event 7 | -11/Scrapyard | Discovered new exit (range 16) 98 | -11/Scrapyard | Entered Materials 300 | -10/Materials | Build established: Mutant 428 | -10/Materials | Discovered new exit (range 9) 480 | -10/Materials | Identified exit to Mines 680 | -10/Materials | Entered Mines 680 | -10/Mines | Discovered new exit (range 8) 686 | -10/Mines | YI-UF0 nonchalantly dropped a Grenade Launcher on the ground 689 | -10/Mines | Identified exit to Materials 704 | -10/Mines | Deemed a non-threat by the Exiles lab entrance 704 | -10/Mines | Discovered new exit (range 5) 707 | -10/Mines | Identified exit to Exiles 776 | -10/Mines | Discovered exit to Materials (range 10) 872 | -10/Mines | A weapon hastily lodged in a ceiling crevice suddenly fell to the ground 901 | -10/Mines | Met a Derelict who couldn't figure out how to use a Trap Extractor 1017 | -10/Mines | Entered Exiles 1017 | -10/Exiles | Found Exiles lab destroyed 1565 | -10/Exiles | Learned location of Zion (-7) 1875 | -10/Exiles | Discovered new exit (range 15) 1892 | -10/Exiles | Identified exit to Mines 2044 | -10/Exiles | Discovered exit to Mines (range 15) 2064 | -10/Exiles | Entered Mines 2064 | -9/Mines | Accompanied by 3 allies 2088 | -9/Mines | Assembled infested the area 2090 | -9/Mines | Learned location of 1 exit from Materials 2273 | -9/Mines | Received a Mining Laser from a helpful Derelict 2399 | -9/Mines | Discovered new exit (range 5) 2414 | -9/Mines | Identified exit to Materials 2416 | -9/Mines | Entered Materials 2416 | -8/Materials | Accompanied by 4 allies 2416 | -8/Materials | Evolved 4 slots: Propulsion x2, Utility x2 2417 | -8/Materials | Identified exit to Factory 2702 | -8/Materials | Destroyed 8 combat bots 2715 | -8/Materials | Build established: Derelict-Mutant 3060 | -8/Materials | Identified exit to Storage 3190 | -8/Materials | Lost 3 parts (2n1w) 3431 | -8/Materials | Discovered exit to Factory (range 6) 3439 | -8/Materials | Entered Factory 3439 | -7/Factory | Evolved 2 slots: Power x1, Utility x1 3599 | -7/Factory | Build established: Mutant 3657 | -7/Factory | Discovered new exit (range 6) 3663 | -7/Factory | Identified exit to Lower Caves 4187 | -7/Factory | Lost 3 parts (1p1n1u) 4277 | -7/Factory | Discovered new exit (range 12) 4333 | -7/Factory | Identified exit to Factory 4355 | -7/Factory | Entered another Factory area 4355 | -6/Factory | Evolved 2 slots: Utility x2 4442 | -6/Factory | Fabricated Cesium-ion Thruster (x2) 4687 | -6/Factory | Repaired Imp. Carbon-fiber Leg 4770 | -6/Factory | Build established: Scavenger-Mutant 5138 | -6/Factory | Noticed a derelict Sapper rigging charges 5270 | -6/Factory | Identified exit to Lower Caves 5373 | -6/Factory | Discovered new exit (range 8) 5443 | -6/Factory | Identified exit to Factory 5444 | -6/Factory | Entered another Factory area 5444 | -5/Factory | Evolved 2 slots: Propulsion x1, Utility x1 5468 | -5/Factory | Identified exit to DSF 5710 | -5/Factory | Lost 4 parts (3n1w) 5844 | -5/Factory | Lost 4 parts (2p2n) 5957 | -5/Factory | Discovered new exit (range 16) 5993 | -5/Factory | Identified exit to Factory 5994 | -5/Factory | Entered another Factory area 5994 | -4/Factory | Evolved 2 slots: Utility x1, Weapon x1 6029 | -4/Factory | Identified exit to DSF 6029 | -4/Factory | Entered DSF 6056 | -4/DSF | Additional patrols routed to DSF 6061 | -4/DSF | Discovered new exit (range 16) 6073 | -4/DSF | Identified exit to Research 6073 | -4/DSF | Entered Research 6073 | -3/Research | Evolved 2 slots: Power x1, Propulsion x1 6114 | -3/Research | Fabricated Cesium-ion Thruster? 6289 | -3/Research | Lost 9 parts (2p4n1u2w) 6302 | -3/Research | Discovered new exit (range 14) 6314 | -3/Research | Identified exit to Research 6314 | -3/Research | Found Quantum Capacitor 6316 | -3/Research | Entered another Research area 6316 | -2/Research | Evolved 2 slots: Utility x1, Weapon x1 6682 | -2/Research | Lost 13 parts (2p7n1u3w) 6705 | -2/Research | Discovered new exit (range 5) 6707 | -2/Research | Entered Access 6707 | -1/Access | Evolved 2 slots: Propulsion x1, Utility x1 6909 | -1/Access | Build established: Mutant 6929 | -1/Access | Lost 5 parts (1p3n1u) 6978 | -1/Access | Core integrity fell below 50% 7007 | -1/Access | Core integrity fell below 20% 7024 | -1/Access | Destroyed by S-43 Plague with Heavy Machine Gun Last Messages --------------- 06986_ W-44 Eye sends out distress signal. 06991_ Jamming Amplifier destroyed. 06998_ Acquired Gravmag Array. 06999_ System corrupted: Heat flow error (+187). 07003_ W-44 Eye sends out distress signal. 07003_ Slug penetrates Wall. 07006_ Penetrated by Slug. 07011_ Slug penetrates Fabricator. 07011_ Penetrated by Slug. 07011_ Slug penetrates Fabricator. 07014_ Slug penetrates Door. 07014_ Slug penetrates Wall. 07017_ Connecting with Garrison Access... 07017_ ALERT: Suspicious activity at Garrison Access A005. Dispatching Investigation squad. 07020_ Gravmag Array destroyed. 07020_ Penetrated by Slug. 07021_ S-43 Plague destroyed. 07024_ Acquired 30 matter. 07024_ Ripper destroyed. Map ----- +----------------------------------------------------+ | ?????????????????????????????????? | | ?????????????????????????????????? | | ?????????????????????????????????? | | ?????????????????????????????????? | | ?????????????????????????????????? | | ?????????????????????????????????? | | ?????????????????????????????????? | | ?????????????????????????????????? | | ?????????????????????????????????? | | ?????????????????????????????????? | | ?????????????????????????????????? | | ?????????????????????????????????? | | ?????????????????????????????????? | | ?????????????????????????????????? | | ?????????????????????????????????? | | ?????????????????????????????????? | | ?????????????????????????????????? | | ?????????????????????????????????? | | ?????????????????????????????????? | | ??????????? ?????????????????????? | | ?????????? ????????????????????? | | ?????????? ###+################ | | ????????? + # | | ????????? # # | | ????????? # " # | | ???????? #@ """ # | | ???????? /sss G # | | ????? # """ # | | ??? # " # | | ??# p # ! # | | ?## # # | | ?# #+######## | | ?# """ #????????? | | ?+ """" ##????????? | | ?# "F"" #??#??????? | | ## ! "" ## #??????? | | """ #??????? | | "" ####???? | | #???? | | #???? | | # #???? | | ????####### #### ########### #???? | | ###+#######+##?#+#?????????? #???? | | # #? ???????????#???? | | # #? ???????????????? | | # # **!??????????????? | | # # **!??????????????? | | # # *!! ?????????????? | | # # ?????????????? | | # =! ########????????????? | +----------------------------------------------------+ Best States ------------- Heat Dissipation 71 Energy Generation 73 Energy Capacity 840 Matter Stores 300 Matter Capacity 300 Sight Range 18 Robot Scan Range 15 Terrain Scan Density 10 ECM Strength 2 Jamming Range 12 Armor Coverage 150 Point Defense Rating 160 Evasion (%) 64 Targeting Accuracy 5 Launcher Accuracy 20 Core Analysis 6 Recoil Reduction 3 Defensive Hacking 10 Item Schematics ----------------- Cesium-ion Thruster | -8/Materials | Scanalyzed Field Propulsion Drive | -2/Research | Scanalyzed Robot Schematics ------------------ None Fabricated ------------ Cesium-ion Thruster | x2 | -6/Factory Cesium-ion Thruster | x2 | -3/Research Repaired ---------- Imp. Carbon-fiber Leg | 11% | -6/Factory Studied --------- Cesium-ion Thruster | -8/Materials | Hacked Hpw. Shotgun | -8/Materials | Hacked Myomer Leg | -2/Research | Hacked Dispersion Rifle | -2/Research | Hacked Alien Tech Used ----------------- None Achievements -------------- Physics Hates This One Trick Spot Them First Window Shopping Challenges ------------ None Game ------ Seed DroneCooledJets Manual? 0 Play Time 01:35:15 Cumulative 31.5 hours Start 2025.10.30 @ 02:46:07 End 2025.10.30 @ 04:17:37 Sessions 1 Manual Loads 0 Difficulty Rogue Special Mode None Game No. 44 Rogue 21 Adventurer 18 Explorer 5 Win Type - Total 0 Types 0/0/0/0/0/0/0/0/0/0 Lore% 29 Gallery% 39 Achievement% 27 Wizard Run 0 Options --------- Layout 0 ASCII 0 Keyboard 1 Movement Numpad Keybinds 0 Fullscreen 1 Font 18/X11 Map View 76x50 Zoom Use 2% Tactical HUD 1 Map Filters NONE Filters NONE Steam 1 RUN: abf96dea-8efd-42c2-996e-75f0ea6fb591